[Event "Titled Tuesday Blitz November 08 Early 2022"]
[White "Svane, Frederik"]
[Black "Goldin, Alexander"]
[WhiteFideId "12923044"]
[BlackFideId "2019540"]
[WhiteElo "2868"]
[BlackElo "2609"]
[Result "0-1"]
[Round "04"]
[TimeControl "180+1"]
[Date "2022.11.09"]
[WhiteClock "0:00:01"]
[BlackClock "0:00:10"]

1. c4 {[%clk 0:03:00]}  e6 {[%clk 0:02:59]} 2. Nc3 {[%clk 0:03:00]}  d5 {[%clk 0:02:59]} 3. d4 {[%clk 0:02:59]}  Nf6 {[%clk 0:03:00]} 4. cxd5 {[%clk 0:02:59]}  exd5 {[%clk 0:03:00]} 5. Bg5 {[%clk 0:02:58]}  Be7 {[%clk 0:03:00]} 6. e3 {[%clk 0:02:58]}  c6 {[%clk 0:03:01]} 7. Bd3 {[%clk 0:02:58]}  Nbd7 {[%clk 0:03:01]} 8. Nf3 {[%clk 0:02:56]}  O-O {[%clk 0:02:59]} 9. h3 {[%clk 0:02:54]}  Re8 {[%clk 0:02:58]} 10. O-O {[%clk 0:02:54]}  Nf8 {[%clk 0:02:58]} 11. Bf4 {[%clk 0:02:54]}  Ng6 {[%clk 0:02:57]} 12. Bh2 {[%clk 0:02:45]}  Bd6 {[%clk 0:02:57]} 13. Bxd6 {[%clk 0:02:33]}  Qxd6 {[%clk 0:02:56]} 14. Rb1 {[%clk 0:02:33]}  a5 {[%clk 0:02:48]} 15. a3 {[%clk 0:02:33]}  Ne4 {[%clk 0:02:45]} 16. Nd2 {[%clk 0:02:09]}  f5 {[%clk 0:02:39]} 17. Re1 {[%clk 0:01:56]}  Bd7 {[%clk 0:02:21]} 18. Qc2 {[%clk 0:01:44]}  Re7 {[%clk 0:02:12]} 19. f4 {[%clk 0:01:16]}  Nh4 {[%clk 0:01:42]} 20. Nf3 {[%clk 0:00:58]}  Nxf3+ {[%clk 0:01:39]} 21. gxf3 {[%clk 0:00:58]}  Nxc3 {[%clk 0:01:19]} 22. bxc3 {[%clk 0:00:58]}  b5 {[%clk 0:01:14]} 23. Bxf5 {[%clk 0:00:37]}  Bxf5 {[%clk 0:01:08]} 24. Qxf5 {[%clk 0:00:38]}  Qxa3 {[%clk 0:01:07]} 25. Qc2 {[%clk 0:00:28]}  Qd6 {[%clk 0:01:06]} 26. Qh2 {[%clk 0:00:17]}  a4 {[%clk 0:01:04]} 27. e4 {[%clk 0:00:17]}  Rae8 {[%clk 0:00:56]} 28. e5 {[%clk 0:00:13]}  Qg6+ {[%clk 0:00:55]} 29. Qg2 {[%clk 0:00:14]}  Qd3 {[%clk 0:00:54]} 30. Qe2 {[%clk 0:00:04]}  Qxc3 {[%clk 0:00:52]} 31. Red1 {[%clk 0:00:05]}  Qa5 {[%clk 0:00:42]} 32. Rbc1 {[%clk 0:00:04]}  Qc7 {[%clk 0:00:38]} 33. Qc2 {[%clk 0:00:04]}  Rc8 {[%clk 0:00:27]} 34. f5 {[%clk 0:00:05]}  Qd7 {[%clk 0:00:25]} 35. Kh1 {[%clk 0:00:04]}  a3 {[%clk 0:00:21]} 36. Rg1 {[%clk 0:00:04]}  Kh8 {[%clk 0:00:20]} 37. Ra1 {[%clk 0:00:04]}  b4 {[%clk 0:00:20]} 38. Rg5 {[%clk 0:00:05]}  Qb7 {[%clk 0:00:18]} 39. Qb3 {[%clk 0:00:05]}  c5 {[%clk 0:00:18]} 40. dxc5 {[%clk 0:00:05]}  Rxe5 {[%clk 0:00:18]} 41. Rg4 {[%clk 0:00:01]}  d4 {[%clk 0:00:15]} 42. Rxd4 {[%clk 0:00:01]}  Rxf5 {[%clk 0:00:12]} 43. Rxb4 {[%clk 0:00:01]}  Qd7 {[%clk 0:00:10]} 0-1


[Site "https://www.chess.com"]

[Event "Titled Tuesday Blitz November 08 Early 2022"]
[White "Swiercz, Dariusz"]
[Black "Arabidze, Meri"]
[WhiteFideId "1126881"]
[BlackFideId "13604040"]
[WhiteElo "2985"]
[BlackElo "2625"]
[Result "1-0"]
[Round "04"]
[TimeControl "180+1"]
[Date "2022.11.09"]
[WhiteClock "0:00:06"]
[BlackClock "0:00:01"]

1. e4 {[%clk 0:02:57]}  c5 {[%clk 0:02:59]} 2. Nf3 {[%clk 0:02:57]}  e6 {[%clk 0:02:59]} 3. c3 {[%clk 0:02:58]}  d5 {[%clk 0:02:58]} 4. exd5 {[%clk 0:02:58]}  exd5 {[%clk 0:02:59]} 5. d4 {[%clk 0:02:58]}  Nc6 {[%clk 0:03:00]} 6. Be2 {[%clk 0:02:59]}  Nf6 {[%clk 0:03:00]} 7. O-O {[%clk 0:02:59]}  Bd6 {[%clk 0:03:00]} 8. dxc5 {[%clk 0:03:00]}  Bxc5 {[%clk 0:03:01]} 9. Nbd2 {[%clk 0:02:57]}  O-O {[%clk 0:03:01]} 10. Nb3 {[%clk 0:02:58]}  Bd6 {[%clk 0:03:01]} 11. Bg5 {[%clk 0:02:58]}  Be6 {[%clk 0:02:58]} 12. Re1 {[%clk 0:02:55]}  h6 {[%clk 0:02:58]} 13. Bh4 {[%clk 0:02:55]}  Be7 {[%clk 0:02:57]} 14. Bd3 {[%clk 0:02:54]}  Bg4 {[%clk 0:02:50]} 15. h3 {[%clk 0:02:52]}  Bh5 {[%clk 0:02:48]} 16. Be2 {[%clk 0:02:31]}  Ne4 {[%clk 0:02:38]} 17. Bxe7 {[%clk 0:02:31]}  Nxe7 {[%clk 0:02:39]} 18. Nfd4 {[%clk 0:02:25]}  Bxe2 {[%clk 0:02:35]} 19. Qxe2 {[%clk 0:02:26]}  Re8 {[%clk 0:02:34]} 20. Rad1 {[%clk 0:02:25]}  Qb6 {[%clk 0:02:30]} 21. Qe3 {[%clk 0:02:09]}  Qg6 {[%clk 0:02:15]} 22. Qf4 {[%clk 0:02:05]}  Nc6 {[%clk 0:02:07]} 23. Qf5 {[%clk 0:01:51]}  Qxf5 {[%clk 0:01:50]} 24. Nxf5 {[%clk 0:01:52]}  Rad8 {[%clk 0:01:50]} 25. f3 {[%clk 0:01:43]}  Nf6 {[%clk 0:01:50]} 26. Rxe8+ {[%clk 0:01:43]}  Rxe8 {[%clk 0:01:49]} 27. Kf2 {[%clk 0:01:37]}  b6 {[%clk 0:01:44]} 28. Nbd4 {[%clk 0:01:31]}  Ne5 {[%clk 0:01:38]} 29. Ne3 {[%clk 0:01:29]}  a6 {[%clk 0:01:27]} 30. Ndf5 {[%clk 0:01:26]}  Nc4 {[%clk 0:01:03]} 31. Nxc4 {[%clk 0:01:21]}  dxc4 {[%clk 0:01:04]} 32. Rd6 {[%clk 0:01:12]}  Re6 {[%clk 0:01:04]} 33. Rd8+ {[%clk 0:01:08]}  Kh7 {[%clk 0:01:03]} 34. Nd4 {[%clk 0:01:07]}  Re5 {[%clk 0:00:59]} 35. Rd6 {[%clk 0:01:05]}  Nd5 {[%clk 0:00:56]} 36. Nc6 {[%clk 0:00:41]}  Rf5 {[%clk 0:00:32]} 37. g4 {[%clk 0:00:34]}  Rf6 {[%clk 0:00:32]} 38. Rxf6 {[%clk 0:00:29]}  gxf6 {[%clk 0:00:30]} 39. a4 {[%clk 0:00:20]}  Nf4 {[%clk 0:00:26]} 40. Ke3 {[%clk 0:00:20]}  Nd3 {[%clk 0:00:22]} 41. b4 {[%clk 0:00:07]}  Nb2 {[%clk 0:00:11]} 42. a5 {[%clk 0:00:07]}  bxa5 {[%clk 0:00:10]} 43. Nxa5 {[%clk 0:00:08]}  Kg6 {[%clk 0:00:06]} 44. Kd4 {[%clk 0:00:08]}  f5 {[%clk 0:00:06]} 45. Nxc4 {[%clk 0:00:07]}  Nd1 {[%clk 0:00:05]} 46. Ne5+ {[%clk 0:00:05]}  Kf6 {[%clk 0:00:05]} 47. Nd7+ {[%clk 0:00:05]}  Kg5 {[%clk 0:00:05]} 48. c4 {[%clk 0:00:04]}  fxg4 {[%clk 0:00:05]} 49. fxg4 {[%clk 0:00:03]}  f5 {[%clk 0:00:03]} 50. gxf5 {[%clk 0:00:03]}  Kxf5 {[%clk 0:00:04]} 51. Nc5 {[%clk 0:00:03]}  Nf2 {[%clk 0:00:03]} 52. h4 {[%clk 0:00:03]}  h5 {[%clk 0:00:02]} 53. Nxa6 {[%clk 0:00:04]}  Ke6 {[%clk 0:00:02]} 54. b5 {[%clk 0:00:05]}  Kd6 {[%clk 0:00:02]} 55. c5+ {[%clk 0:00:05]}  Kd7 {[%clk 0:00:02]} 56. b6 {[%clk 0:00:05]}  Kc6 {[%clk 0:00:02]} 57. Nb4+ {[%clk 0:00:05]}  Kb7 {[%clk 0:00:03]} 58. Nd3 {[%clk 0:00:05]}  Ng4 {[%clk 0:00:02]} 59. Nf4 {[%clk 0:00:05]}  Nf6 {[%clk 0:00:02]} 60. Ke5 {[%clk 0:00:05]}  Nd7+ {[%clk 0:00:02]} 61. Kd6 {[%clk 0:00:05]}  Nf6 {[%clk 0:00:01]} 62. Ke6 {[%clk 0:00:05]}  Ne4 {[%clk 0:00:01]} 63. Kd5 {[%clk 0:00:05]}  Nf6+ {[%clk 0:00:02]} 64. Kc4 {[%clk 0:00:06]}  Kc6 {[%clk 0:00:01]} 65. Nd3 {[%clk 0:00:06]}  Ne4 {[%clk 0:00:02]} 66. Nb4+ {[%clk 0:00:06]}  Kb7 {[%clk 0:00:02]} 67. Kd4 {[%clk 0:00:06]}  Nf6 {[%clk 0:00:02]} 68. Nd5 {[%clk 0:00:06]}  Nd7 {[%clk 0:00:01]} 69. Kc4 {[%clk 0:00:05]}  Ne5+ {[%clk 0:00:01]} 70. Kb5 {[%clk 0:00:06]} 1-0


[Site "https://www.chess.com"]

[Event "Titled Tuesday Blitz November 08 Early 2022"]
[White "Tang, Andrew"]
[Black "Nakamura, Hikaru"]
[WhiteFideId "2059630"]
[BlackFideId "2016192"]
[WhiteElo "2581"]
[BlackElo "2909"]
[Result "0-1"]
[Round "04"]
[TimeControl "180+1"]
[Date "2022.11.08"]
[WhiteClock "0:00:02"]
[BlackClock "0:00:12"]

1. d4 {[%clk 0:03:00]}  g6 {[%clk 0:02:56]} 2. c4 {[%clk 0:03:00]}  Nf6 {[%clk 0:02:55]} 3. f3 {[%clk 0:02:59]}  Nc6 {[%clk 0:02:37]} 4. d5 {[%clk 0:02:50]}  Ne5 {[%clk 0:02:35]} 5. e4 {[%clk 0:02:51]}  d6 {[%clk 0:02:34]} 6. Nc3 {[%clk 0:02:51]}  Bg7 {[%clk 0:02:31]} 7. Be2 {[%clk 0:02:52]}  c6 {[%clk 0:02:19]} 8. f4 {[%clk 0:02:40]}  Ned7 {[%clk 0:02:17]} 9. Be3 {[%clk 0:02:35]}  cxd5 {[%clk 0:02:09]} 10. cxd5 {[%clk 0:02:33]}  b5 {[%clk 0:01:56]} 11. Bxb5 {[%clk 0:01:40]}  O-O {[%clk 0:01:56]} 12. Nge2 {[%clk 0:01:28]}  Nc5 {[%clk 0:01:11]} 13. Bxc5 {[%clk 0:01:15]}  dxc5 {[%clk 0:01:12]} 14. e5 {[%clk 0:01:13]}  Ng4 {[%clk 0:01:11]} 15. Qd3 {[%clk 0:01:09]}  c4 {[%clk 0:00:59]} 16. Qxc4 {[%clk 0:00:55]}  Ne3 {[%clk 0:00:55]} 17. Qe4 {[%clk 0:00:54]}  Qb6 {[%clk 0:00:52]} 18. Rc1 {[%clk 0:00:32]}  Bf5 {[%clk 0:00:31]} 19. Qd4 {[%clk 0:00:32]}  Nxg2+ {[%clk 0:00:28]} 20. Kd2 {[%clk 0:00:21]}  Qxd4+ {[%clk 0:00:28]} 21. Nxd4 {[%clk 0:00:22]}  Nxf4 {[%clk 0:00:28]} 22. Nxf5 {[%clk 0:00:20]}  gxf5 {[%clk 0:00:29]} 23. Rce1 {[%clk 0:00:20]}  Rfd8 {[%clk 0:00:29]} 24. Bc6 {[%clk 0:00:18]}  Rac8 {[%clk 0:00:28]} 25. Ke3 {[%clk 0:00:12]}  Ng6 {[%clk 0:00:25]} 26. Rhf1 {[%clk 0:00:05]}  e6 {[%clk 0:00:25]} 27. Rd1 {[%clk 0:00:01]}  Nxe5 {[%clk 0:00:25]} 28. Bb5 {[%clk 0:00:01]}  Ng4+ {[%clk 0:00:24]} 29. Ke2 {[%clk 0:00:02]}  Nxh2 {[%clk 0:00:15]} 30. Rh1 {[%clk 0:00:01]}  Ng4 {[%clk 0:00:15]} 31. dxe6 {[%clk 0:00:02]}  fxe6 {[%clk 0:00:16]} 32. Rhg1 {[%clk 0:00:02]}  Rxd1 {[%clk 0:00:12]} 33. Rxd1 {[%clk 0:00:03]}  Rb8 {[%clk 0:00:12]} 34. a4 {[%clk 0:00:02]}  a6 {[%clk 0:00:11]} 35. Bxa6 {[%clk 0:00:01]}  Rxb2+ {[%clk 0:00:12]} 36. Kd3 {[%clk 0:00:02]}  Nf2+ {[%clk 0:00:12]} 0-1


[Site "https://www.chess.com"]

[Event "Titled Tuesday Blitz November 08 Early 2022"]
[White "Tarigan, Gilbert Elroy"]
[Black "Rottenwohrer Suarez, Juan"]
[WhiteFideId "7108133"]
[BlackFideId "32068182"]
[WhiteElo "2284"]
[BlackElo "2195"]
[Result "1-0"]
[Round "04"]
[TimeControl "180+1"]
[Date "2022.11.09"]
[WhiteClock "0:01:01"]
[BlackClock "0:00:23"]

1. e4 {[%clk 0:02:57]}  c5 {[%clk 0:02:58]} 2. Nf3 {[%clk 0:02:56]}  d6 {[%clk 0:02:57]} 3. c3 {[%clk 0:02:55]}  Nf6 {[%clk 0:02:54]} 4. Bd3 {[%clk 0:02:54]}  Nc6 {[%clk 0:02:53]} 5. Bc2 {[%clk 0:02:53]}  Bg4 {[%clk 0:02:51]} 6. h3 {[%clk 0:02:53]}  Bh5 {[%clk 0:02:48]} 7. d3 {[%clk 0:02:51]}  e6 {[%clk 0:02:45]} 8. Nbd2 {[%clk 0:02:52]}  Be7 {[%clk 0:02:44]} 9. Nf1 {[%clk 0:02:51]}  d5 {[%clk 0:02:42]} 10. Ng3 {[%clk 0:02:51]}  Bg6 {[%clk 0:02:39]} 11. O-O {[%clk 0:02:51]}  Qc7 {[%clk 0:02:37]} 12. Qe2 {[%clk 0:02:50]}  Bd6 {[%clk 0:02:36]} 13. Nf5 {[%clk 0:02:41]}  exf5 {[%clk 0:02:34]} 14. exf5+ {[%clk 0:02:42]}  Kd7 {[%clk 0:02:31]} 15. fxg6 {[%clk 0:02:39]}  Rae8 {[%clk 0:02:30]} 16. Qd1 {[%clk 0:02:33]}  hxg6 {[%clk 0:02:31]} 17. d4 {[%clk 0:02:28]}  c4 {[%clk 0:02:30]} 18. b3 {[%clk 0:02:26]}  Kc8 {[%clk 0:02:25]} 19. bxc4 {[%clk 0:02:17]}  dxc4 {[%clk 0:02:26]} 20. Rb1 {[%clk 0:02:18]}  Kb8 {[%clk 0:02:14]} 21. Nd2 {[%clk 0:02:11]}  Ne7 {[%clk 0:01:52]} 22. Ne4 {[%clk 0:02:08]}  Ned5 {[%clk 0:01:46]} 23. Nxf6 {[%clk 0:02:04]}  gxf6 {[%clk 0:01:40]} 24. Qf3 {[%clk 0:02:04]}  Qd7 {[%clk 0:01:24]} 25. Ba4 {[%clk 0:01:57]}  Qxa4 {[%clk 0:01:19]} 26. Qxd5 {[%clk 0:01:57]}  Qd7 {[%clk 0:01:16]} 27. Bf4 {[%clk 0:01:52]}  Re6 {[%clk 0:01:16]} 28. Bxd6+ {[%clk 0:01:49]}  Rxd6 {[%clk 0:01:14]} 29. Rxb7+ {[%clk 0:01:48]}  Qxb7 {[%clk 0:01:15]} 30. Qxd6+ {[%clk 0:01:48]}  Ka8 {[%clk 0:01:16]} 31. Qxf6 {[%clk 0:01:48]}  Re8 {[%clk 0:01:15]} 32. Qd6 {[%clk 0:01:34]}  a6 {[%clk 0:00:53]} 33. Qc5 {[%clk 0:01:22]}  Rc8 {[%clk 0:00:43]} 34. Qe5 {[%clk 0:01:22]}  g5 {[%clk 0:00:27]} 35. Re1 {[%clk 0:01:18]}  g4 {[%clk 0:00:27]} 36. hxg4 {[%clk 0:01:18]}  Rg8 {[%clk 0:00:25]} 37. Qe4 {[%clk 0:01:17]}  Qxe4 {[%clk 0:00:23]} 38. Rxe4 {[%clk 0:01:18]}  Kb7 {[%clk 0:00:23]} 39. Re7+ {[%clk 0:01:01]}  Kc6 {[%clk 0:00:23]} 40. Rxf7 {[%clk 0:01:00]}  Rxg4 {[%clk 0:00:23]} 41. Rf5 {[%clk 0:01:01]} 1-0


[Site "https://www.chess.com"]

[Event "Titled Tuesday Blitz November 08 Early 2022"]
[White "Tate, Alan"]
[Black "Carbone, Diego"]
[WhiteFideId "2401878"]
[BlackFideId "3002179"]
[WhiteElo "2179"]
[BlackElo "2265"]
[Result "0-1"]
[Round "04"]
[TimeControl "180+1"]
[Date "2022.11.09"]
[WhiteClock "0:00:01"]
[BlackClock "0:00:36"]

1. c4 {[%clk 0:02:59]}  e6 {[%clk 0:02:59]} 2. g3 {[%clk 0:02:55]}  d5 {[%clk 0:02:59]} 3. Bg2 {[%clk 0:02:56]}  Nf6 {[%clk 0:02:58]} 4. Nf3 {[%clk 0:02:56]}  c6 {[%clk 0:02:58]} 5. O-O {[%clk 0:02:51]}  Nbd7 {[%clk 0:02:57]} 6. d4 {[%clk 0:02:48]}  Be7 {[%clk 0:02:54]} 7. Nbd2 {[%clk 0:02:47]}  O-O {[%clk 0:02:53]} 8. Qc2 {[%clk 0:02:47]}  b6 {[%clk 0:02:52]} 9. e4 {[%clk 0:02:48]}  Bb7 {[%clk 0:02:51]} 10. Re1 {[%clk 0:02:42]}  Rc8 {[%clk 0:02:50]} 11. e5 {[%clk 0:02:37]}  Ne8 {[%clk 0:02:50]} 12. cxd5 {[%clk 0:02:36]}  cxd5 {[%clk 0:02:49]} 13. Qd1 {[%clk 0:02:36]}  Nb8 {[%clk 0:02:43]} 14. Nb1 {[%clk 0:02:30]}  Bb4 {[%clk 0:02:28]} 15. Nc3 {[%clk 0:02:16]}  Ba6 {[%clk 0:02:02]} 16. Ng5 {[%clk 0:01:27]}  h6 {[%clk 0:01:54]} 17. Nh3 {[%clk 0:01:23]}  Nc7 {[%clk 0:01:21]} 18. Qh5 {[%clk 0:00:49]}  Bd3 {[%clk 0:01:08]} 19. Be3 {[%clk 0:00:19]}  Bxc3 {[%clk 0:01:01]} 20. bxc3 {[%clk 0:00:18]}  Nb5 {[%clk 0:01:02]} 21. Nf4 {[%clk 0:00:08]}  Bh7 {[%clk 0:01:02]} 22. Qg4 {[%clk 0:00:01]}  Bf5 {[%clk 0:00:50]} 23. Qf3 {[%clk 0:00:01]}  Nxc3 {[%clk 0:00:45]} 24. Nh5 {[%clk 0:00:01]}  Ne4 {[%clk 0:00:38]} 25. g4 {[%clk 0:00:01]}  Bg6 {[%clk 0:00:37]} 26. Nf4 {[%clk 0:00:01]}  Nc6 {[%clk 0:00:36]} 0-1


[Site "https://www.chess.com"]

[Event "Titled Tuesday Blitz November 08 Early 2022"]
[White "Thiel, Thomas"]
[Black "Orzech, Dominik"]
[WhiteFideId "4615964"]
[BlackFideId "1115065"]
[WhiteElo "2210"]
[BlackElo "2272"]
[Result "1/2-1/2"]
[Round "04"]
[TimeControl "180+1"]
[Date "2022.11.09"]
[WhiteClock "0:00:02"]
[BlackClock "0:00:12"]

1. e4 {[%clk 0:03:00]}  c6 {[%clk 0:01:56]} 2. d4 {[%clk 0:02:55]}  d5 {[%clk 0:01:57]} 3. exd5 {[%clk 0:02:55]}  cxd5 {[%clk 0:01:57]} 4. c4 {[%clk 0:02:55]}  Nf6 {[%clk 0:01:57]} 5. Nc3 {[%clk 0:02:55]}  g6 {[%clk 0:01:57]} 6. Qb3 {[%clk 0:02:54]}  Nc6 {[%clk 0:01:55]} 7. cxd5 {[%clk 0:02:50]}  Na5 {[%clk 0:01:51]} 8. Qa4+ {[%clk 0:02:46]}  Bd7 {[%clk 0:01:50]} 9. Bb5 {[%clk 0:02:45]}  a6 {[%clk 0:01:49]} 10. Bxd7+ {[%clk 0:02:43]}  Nxd7 {[%clk 0:01:50]} 11. Nf3 {[%clk 0:02:30]}  b5 {[%clk 0:01:49]} 12. Qd1 {[%clk 0:02:24]}  Bg7 {[%clk 0:01:49]} 13. O-O {[%clk 0:02:21]}  O-O {[%clk 0:01:48]} 14. Re1 {[%clk 0:02:20]}  Nb6 {[%clk 0:01:47]} 15. Bd2 {[%clk 0:02:04]}  Nac4 {[%clk 0:01:45]} 16. Ne5 {[%clk 0:01:54]}  Nxb2 {[%clk 0:01:31]} 17. Qb3 {[%clk 0:01:45]}  Bxe5 {[%clk 0:01:31]} 18. dxe5 {[%clk 0:01:39]}  N2c4 {[%clk 0:01:30]} 19. Rad1 {[%clk 0:01:38]}  Nxd5 {[%clk 0:01:09]} 20. Nxd5 {[%clk 0:01:36]}  Qxd5 {[%clk 0:01:08]} 21. Bh6 {[%clk 0:01:35]}  Qe6 {[%clk 0:01:07]} 22. Bxf8 {[%clk 0:01:35]}  Kxf8 {[%clk 0:01:08]} 23. a4 {[%clk 0:01:32]}  Rb8 {[%clk 0:01:06]} 24. axb5 {[%clk 0:01:30]}  axb5 {[%clk 0:01:07]} 25. Qb4 {[%clk 0:01:18]}  h5 {[%clk 0:01:02]} 26. Qc5 {[%clk 0:01:15]}  b4 {[%clk 0:01:00]} 27. Rd4 {[%clk 0:01:11]}  b3 {[%clk 0:00:52]} 28. Qxc4 {[%clk 0:01:05]}  b2 {[%clk 0:00:51]} 29. Qc2 {[%clk 0:00:56]}  Qa2 {[%clk 0:00:36]} 30. Rdd1 {[%clk 0:00:55]}  b1=Q {[%clk 0:00:27]} 31. Qxb1 {[%clk 0:00:51]}  Rxb1 {[%clk 0:00:26]} 32. Rxb1 {[%clk 0:00:52]}  Qd5 {[%clk 0:00:26]} 33. h3 {[%clk 0:00:51]}  h4 {[%clk 0:00:26]} 34. Rbd1 {[%clk 0:00:51]}  Qc5 {[%clk 0:00:25]} 35. Re4 {[%clk 0:00:45]}  g5 {[%clk 0:00:24]} 36. Rde1 {[%clk 0:00:44]}  e6 {[%clk 0:00:24]} 37. R4e3 {[%clk 0:00:40]}  Kg7 {[%clk 0:00:24]} 38. Rf3 {[%clk 0:00:37]}  Qd4 {[%clk 0:00:22]} 39. Ree3 {[%clk 0:00:35]}  Qd1+ {[%clk 0:00:19]} 40. Kh2 {[%clk 0:00:33]}  Qd4 {[%clk 0:00:20]} 41. Rf6 {[%clk 0:00:33]}  Qd5 {[%clk 0:00:19]} 42. f4 {[%clk 0:00:27]}  Qd4 {[%clk 0:00:12]} 43. Rf3 {[%clk 0:00:27]}  gxf4 {[%clk 0:00:12]} 44. R6xf4 {[%clk 0:00:23]}  Qxe5 {[%clk 0:00:12]} 45. Kg1 {[%clk 0:00:21]}  f5 {[%clk 0:00:12]} 46. Rf1 {[%clk 0:00:16]}  Qe3+ {[%clk 0:00:10]} 47. Kh1 {[%clk 0:00:14]}  Qg3 {[%clk 0:00:10]} 48. R4f3 {[%clk 0:00:13]}  Qe5 {[%clk 0:00:10]} 49. Rf4 {[%clk 0:00:12]}  Qf6 {[%clk 0:00:10]} 50. R4f2 {[%clk 0:00:07]}  Qg5 {[%clk 0:00:10]} 51. Rf4 {[%clk 0:00:07]}  Kf6 {[%clk 0:00:10]} 52. R4f2 {[%clk 0:00:06]}  e5 {[%clk 0:00:10]} 53. Rxf5+ {[%clk 0:00:05]}  Qxf5 {[%clk 0:00:09]} 54. Rxf5+ {[%clk 0:00:04]}  Kxf5 {[%clk 0:00:10]} 55. Kg1 {[%clk 0:00:03]}  Kf4 {[%clk 0:00:11]} 56. Kf2 {[%clk 0:00:03]}  e4 {[%clk 0:00:11]} 57. Ke2 {[%clk 0:00:03]}  Kg3 {[%clk 0:00:11]} 58. Ke3 {[%clk 0:00:03]}  Kxg2 {[%clk 0:00:12]} 59. Kxe4 {[%clk 0:00:03]}  Kg3 {[%clk 0:00:12]} 60. Ke3 {[%clk 0:00:03]}  Kxh3 {[%clk 0:00:12]} 61. Kf3 {[%clk 0:00:03]}  Kh2 {[%clk 0:00:12]} 62. Kf2 {[%clk 0:00:03]}  h3 {[%clk 0:00:12]} 63. Kf1 {[%clk 0:00:02]}  Kh1 {[%clk 0:00:12]} 64. Kf2 {[%clk 0:00:02]}  h2 {[%clk 0:00:12]} 65. Kf1 {[%clk 0:00:02]} 1/2-1/2


[Site "https://www.chess.com"]

[Event "Titled Tuesday Blitz November 08 Early 2022"]
[White "Timofeev, Artyom"]
[Black "Ovchinnikov, Vsevolod"]
[WhiteFideId "4140419"]
[BlackFideId "24176842"]
[WhiteElo "2838"]
[BlackElo "2578"]
[Result "1/2-1/2"]
[Round "04"]
[TimeControl "180+1"]
[Date "2022.11.09"]
[WhiteClock "0:00:04"]
[BlackClock "0:00:08"]

1. e4 {[%clk 0:03:00]}  g6 {[%clk 0:02:58]} 2. d4 {[%clk 0:03:00]}  Bg7 {[%clk 0:02:58]} 3. Nc3 {[%clk 0:03:00]}  a6 {[%clk 0:02:59]} 4. Bf4 {[%clk 0:02:57]}  d6 {[%clk 0:02:58]} 5. Qd2 {[%clk 0:02:55]}  b5 {[%clk 0:02:57]} 6. O-O-O {[%clk 0:02:51]}  Nd7 {[%clk 0:02:56]} 7. Nf3 {[%clk 0:02:49]}  Bb7 {[%clk 0:02:54]} 8. Kb1 {[%clk 0:02:48]}  c5 {[%clk 0:02:46]} 9. d5 {[%clk 0:02:36]}  Qa5 {[%clk 0:02:39]} 10. Ne2 {[%clk 0:02:27]}  Qxd2 {[%clk 0:02:38]} 11. Nxd2 {[%clk 0:02:27]}  Ngf6 {[%clk 0:02:33]} 12. f3 {[%clk 0:02:27]}  Nb6 {[%clk 0:02:29]} 13. Nc1 {[%clk 0:02:21]}  Nh5 {[%clk 0:01:53]} 14. Be3 {[%clk 0:02:18]}  Na4 {[%clk 0:01:48]} 15. c3 {[%clk 0:02:03]}  Bxc3 {[%clk 0:01:48]} 16. bxc3 {[%clk 0:02:02]}  Nxc3+ {[%clk 0:01:48]} 17. Kc2 {[%clk 0:02:03]}  Nxd1 {[%clk 0:01:49]} 18. Kxd1 {[%clk 0:02:03]}  e6 {[%clk 0:01:40]} 19. dxe6 {[%clk 0:01:55]}  fxe6 {[%clk 0:01:41]} 20. e5 {[%clk 0:01:55]}  Ke7 {[%clk 0:01:04]} 21. exd6+ {[%clk 0:01:53]}  Kxd6 {[%clk 0:01:05]} 22. Ncb3 {[%clk 0:01:40]}  Rac8 {[%clk 0:01:01]} 23. Be2 {[%clk 0:01:39]}  Nf6 {[%clk 0:00:48]} 24. Kc2 {[%clk 0:01:39]}  c4 {[%clk 0:00:44]} 25. Na5 {[%clk 0:01:34]}  Bd5 {[%clk 0:00:45]} 26. Bd4 {[%clk 0:01:33]}  e5 {[%clk 0:00:42]} 27. Bc3 {[%clk 0:01:33]}  Rhe8 {[%clk 0:00:29]} 28. a4 {[%clk 0:01:28]}  Rb8 {[%clk 0:00:25]} 29. axb5 {[%clk 0:01:27]}  axb5 {[%clk 0:00:26]} 30. Bb4+ {[%clk 0:01:27]}  Ke6 {[%clk 0:00:26]} 31. Re1 {[%clk 0:01:22]}  Nh5 {[%clk 0:00:23]} 32. Bf1 {[%clk 0:01:16]}  Rbd8 {[%clk 0:00:22]} 33. Nb1 {[%clk 0:01:14]}  Kf6 {[%clk 0:00:20]} 34. Nc3 {[%clk 0:01:14]}  Be6 {[%clk 0:00:17]} 35. Nxb5 {[%clk 0:01:01]}  Bf5+ {[%clk 0:00:18]} 36. Kc3 {[%clk 0:00:54]}  Nf4 {[%clk 0:00:18]} 37. Bxc4 {[%clk 0:00:54]}  Nxg2 {[%clk 0:00:17]} 38. Rg1 {[%clk 0:00:41]}  Ne3 {[%clk 0:00:17]} 39. Nd6 {[%clk 0:00:39]}  Rh8 {[%clk 0:00:16]} 40. Nc6 {[%clk 0:00:37]}  Rc8 {[%clk 0:00:16]} 41. Nxc8 {[%clk 0:00:37]}  Rxc8 {[%clk 0:00:16]} 42. Bb5 {[%clk 0:00:27]}  Bd7 {[%clk 0:00:09]} 43. Kd2 {[%clk 0:00:27]}  Nd5 {[%clk 0:00:07]} 44. Na7 {[%clk 0:00:20]}  Rc7 {[%clk 0:00:04]} 45. Bc5 {[%clk 0:00:15]}  Rxc5 {[%clk 0:00:04]} 46. Bxd7 {[%clk 0:00:14]}  Nf4 {[%clk 0:00:03]} 47. Bc6 {[%clk 0:00:11]}  Ra5 {[%clk 0:00:03]} 48. Nb5 {[%clk 0:00:10]}  Ra2+ {[%clk 0:00:03]} 49. Kd1 {[%clk 0:00:09]}  Rxh2 {[%clk 0:00:03]} 50. Nc3 {[%clk 0:00:08]}  Rb2 {[%clk 0:00:03]} 51. Ne4+ {[%clk 0:00:08]}  Kg7 {[%clk 0:00:04]} 52. Ng5 {[%clk 0:00:06]}  Rb1+ {[%clk 0:00:04]} 53. Kd2 {[%clk 0:00:07]}  Rxg1 {[%clk 0:00:04]} 54. Ne4 {[%clk 0:00:07]}  Rg2+ {[%clk 0:00:05]} 55. Ke1 {[%clk 0:00:07]}  h5 {[%clk 0:00:05]} 56. Kf1 {[%clk 0:00:07]}  Rb2 {[%clk 0:00:05]} 57. Be8 {[%clk 0:00:06]}  Rb1+ {[%clk 0:00:06]} 58. Kf2 {[%clk 0:00:06]}  Rb2+ {[%clk 0:00:06]} 59. Kf1 {[%clk 0:00:07]}  Rb8 {[%clk 0:00:07]} 60. Bd7 {[%clk 0:00:06]}  Rd8 {[%clk 0:00:07]} 61. Bb5 {[%clk 0:00:05]}  Rd4 {[%clk 0:00:07]} 62. Kf2 {[%clk 0:00:05]}  Rb4 {[%clk 0:00:07]} 63. Be8 {[%clk 0:00:04]}  Rb2+ {[%clk 0:00:08]} 64. Kf1 {[%clk 0:00:04]} 1/2-1/2


[Site "https://www.chess.com"]